Cogmind - Beta 9.4 *** ADVENTURER MODE // 2020.08.02 @ 19:21:32 Player: Scyralis Result: Self-destructed Performance ------------- Evolutions (1) 500 Regions Visited (3) 600 Robots Destroyed (39) 195 Value Destroyed (786) 786 Prototype IDs (2) 40 Alien Tech Used (0) 0 Bonus (0) 0 TOTAL SCORE: 2121 Bonus ------- None Cogmind --------- Core Integrity 40/400 Matter 8/300 Energy 99/100 System Corruption 1% Temperature Cool (6) Movement Core (50) Location -9/Materials Parts ------- > --- POWER (1) -------- (None) > --- PROPULSION (2) --- (None) > --- UTILITY (4) ------ Targeting Computer Armor Integrity Analyzer > --- WEAPON (2) ------- (None) > --- INVENTORY (4) ---- Compact Battery (110) Beam Rifle Peak State ------------ > --- POWER ------------ (None) > --- PROPULSION ------- Flight Unit VTOL Module > --- UTILITY ---------- Improved Sensor Array Targeting Computer Armor Integrity Analyzer Power Shielding > --- WEAPON ----------- Rocket Launcher Mini Grenade Launcher > --- INVENTORY -------- (None) [Rating: 13] Favorites ----------- Power Light Ion Engine Engine Light Ion Engine Propulsion Flight Unit Wheel Wheel Hover Unit Hover Unit Flight Unit Flight Unit Utility Armor Integrity Analyzer Device Improved Sensor Array Processor Armor Integrity Analyzer Protection Power Shielding Weapon Mini Grenade Launcher Energy Gun EM Pulse Gun Launcher Mini Grenade Launcher Build | -11 -10 -10 -9 ------- Run | Scr Mat Min Mat Slots Evolved 2 | . . . 2 Power . | . . . . Propulsion . | . . . . Utility 2 | . . . 2 Weapon . | . . . . Parts Attached 33 | 4 15 1 13 Power 6 | 1 2 . 3 Engine 6 | 1 2 . 3 Core . | . . . . Reactor . | . . . . Propulsion 12 | 2 8 . 2 Treads . | . . . . Leg . | . . . . Wheel 2 | 2 . . . Hover 3 | . 3 . . Flight 7 | . 5 . 2 Utility 7 | . 4 . 3 Device 3 | . 2 . 1 Storage . | . . . . Processor 3 | . 2 . 1 Hackware . | . . . . Protection 1 | . . . 1 Artifact . | . . . . Weapon 8 | 1 1 1 5 Energy Gun 3 | 1 1 . 1 Energy Cannon . | . . . . Ballistic Gun . | . . . . Ballistic Cannon . | . . . . Launcher 5 | . . 1 4 Special Weapon . | . . . . Impact Weapon . | . . . . Slashing Weapon . | . . . . Piercing Weapon . | . . . . Special Melee Weapon . | . . . . Unidentified Prototypes . | . . . . Parts Lost 8 | . 1 2 5 Power 2 | . . 1 1 Propulsion 2 | . . . 2 Utility . | . . . . Weapon 4 | . 1 1 2 Highest Loss Streak 2 | . 1 1 2 Average Slot Usage (%) 71 | . 64 79 75 Engine 7 | . 13 14 1 Hover 2 | . 6 . . Flight 14 | . 14 28 13 Device 9 | . 8 14 10 Processor 16 | . 8 14 22 Protection 5 | . . . 10 Energy Gun 5 | . 12 . . Launcher 10 | . . 8 17 Naked Turns . | . . . . Heaviest Build 9 | 7 8 8 9 Greatest Support 20 | 20 20 8 8 Greatest Overweight (x) 2 | . 1 . 2 Average Overweight (x) . | . . . . Largest Inventory Capacity 4 | 4 4 4 4 Average Capacity 4 | 4 4 4 4 Most Carried 3 | 3 2 2 2 Average Carried . | . . . . Final Capacity 4 | 4 4 4 4 Final Carried 2 | . . 2 2 Class Distribution -------------------- 92% | Mutant 7% | Scavenger-Mutant Dominant Class ---------------- Mutant | -10/Materials Mutant | -10/Mines Mutant | -9/Materials Resources | -11 -10 -10 -9 ----------- Run | Scr Mat Min Mat Matter Collected 640 | 207 147 . 286 Remotely . | . . . . Salvage Created 1085 | . 485 . 600 Parts 74 | . 37 . 37 Haulers Intercepted 3 | . 2 . 1 Recyclers Shooed 2 | . 2 . . Parts Field Recycled . | . . . . Retrieved Matter . | . . . . Parts Self-Destructed . | . . . . Prevented . | . . . . Kills | -11 -10 -10 -9 ------- Run | Scr Mat Min Mat Combat Hostiles Destroyed 21 | . 9 . 12 Guns 14 | . 9 . 5 AOE 7 | . . . 7 Classes Destroyed 9 | . 6 . 3 Worker 3 | . . . 3 Builder 2 | . 1 . 1 Tunneler 1 | . . . 1 Hauler 3 | . 2 . 1 Recycler 5 | . 2 . 3 Watcher 4 | . 2 . 2 Swarmer 6 | . 6 . . Grunt 12 | . 3 . 9 Sentry 3 | . . . 3 Best Kill Streak 6 | . 4 . 6 Combat Bots Only 5 | . 3 . 5 Max Kills in Single Turn 4 | . 1 . 4 Gunslinging . | . . . . Exploded 4 | . . . 4 Melee . | . . . . Uniques/NPCs Destroyed . | . . . . Combat | -11 -10 -10 -9 -------- Run | Scr Mat Min Mat Damage Taken 1074 | . 260 131 683 Core 490 | . 93 37 360 Absorbed by Shields . | . . . . Core Remaining (%) 74 | 100 . 48 . Volleys Fired 91 | . 58 4 29 Largest 2 | . 1 1 2 Hottest 65 | . 65 65 60 Shots Fired 112 | . 58 4 50 Gun 68 | . 58 2 8 Cannon . | . . . . Launcher 44 | . . 2 42 Special . | . . . . Kinetic . | . . . . Thermal 32 | . 30 2 . Explosive 44 | . . 2 42 Electromagnetic 36 | . 28 . 8 Robot Hit Streak 19 | . 19 4 14 Robot Miss Streak 7 | . 7 2 2 Penetration Max . | . . . . Secondary Targets . | . . . . Shots Hit Robots 90 | . 51 3 36 Core Hits 82 | . 42 3 37 Critical Hits . | . . . . Critical Kills . | . . . . Critical Parts Destroyed . | . . . . Melee Attacks . | . . . . Impact . | . . . . Slashing . | . . . . Piercing . | . . . . Sneak Attacks . | . . . . Combat Hostiles . | . . . . Follow-up Attacks . | . . . . Damage Inflicted 2477 | . 623 87 1767 Guns 719 | . 566 41 112 Cannons . | . . . . Explosions 1758 | . 57 46 1655 Melee . | . . . . Ramming . | . . . . Kinetic . | . . . . Thermal 562 | . 311 41 210 Explosive 1491 | . . 46 1445 Electromagnetic 424 | . 312 . 112 Impact . | . . . . Slashing . | . . . . Piercing . | . . . . Highest Corruption 1 | . . . 1 Average Corruption 1 | . . . 1 Corruption Purged . | . . . . Overload Shots . | . . . . Overflow Damage 136 | . 20 . 116 Projectiles . | . . . . Explosions 136 | . 20 . 116 Melee . | . . . . Knockbacks . | . . . . Impact . | . . . . Kinetic . | . . . . Secondary . | . . . . Self-Inflicted Damage 262 | . 31 24 207 Shots 12 | . 1 1 10 Rammed . | . . . . Targets Rammed . | . . . . Kicked . | . . . . Crushed . | . . . . Highest Temperature 254 | . 254 79 2 Average Temperature 66 | . 70 36 1 Received Heat Transfer 408 | . 72 48 288 Effects 1 | . 1 . . Energy Bleed 1 | . 1 . . Siege Activations . | . . . . Robots Corrupted . | . . . . Combat Hostiles . | . . . . Parts Fried 2 | . 2 . . Impact Corruptions . | . . . . Robots Melted . | . . . . Combat Hostiles . | . . . . Parts Melted . | . . . . Heat Transferred 565 | . 415 50 100 Parts Sabotaged . | . . . . Parts Stolen . | . . . . Parts Stripped . | . . . . Power Chain Reactions 1 | . 1 . . Missiles Intercepted . | . . . . Alert | -11 -10 -10 -9 ------- Run | Scr Mat Min Mat Peak Influence 401 | . 317 109 401 Average Influence 178 | . 158 95 220 Maximum Alert Level 2 | . 1 . 2 Low Security (%) 53 | 100 56 100 39 Level 1 44 | . 43 . 54 Level 2 2 | . . . 5 Level 3 . | . . . . Level 4 . | . . . . Level 5 . | . . . . High Security . | . . . . Max Security . | . . . . Squads Dispatched 6 | . 1 . 5 Investigation 5 | . 1 . 4 Extermination . | . . . . Reinforcement 1 | . . . 1 Assault . | . . . . Garrison . | . . . . Intercept . | . . . . Construction Impeded . | . . . . Haulers Reinforced . | . . . . Stealth | -11 -10 -10 -9 --------- Run | Scr Mat Min Mat Distress Signals 2 | . 1 . 1 Communications Jammed . | . . . . Distress Signals . | . . . . Times Spotted 54 | . 21 4 29 Peak Tracking Total 10 | . 5 2 10 Tactical Retreats 7 | . 2 1 4 Traps | -11 -10 -10 -9 ------- Run | Scr Mat Min Mat Traps Triggered 1 | . . . 1 Indirectly . | . . . . Trap Hack Attempts . | . . . . Triggered . | . . . . Disarmed . | . . . . Reprogrammed . | . . . . Reused . | . . . . Traps Extracted . | . . . . Installed . | . . . . Triggered . | . . . . Machines | -11 -10 -10 -9 ---------- Run | Scr Mat Min Mat Machines Disabled 5 | . 1 . 4 Max in Single Turn 2 | . 1 . 2 Machines Sabotaged . | . . . . Garrisons Compromised . | . . . . Overloaded Fab Kills . | . . . . Fab Network Shutdowns . | . . . . Hacking | -11 -10 -10 -9 --------- Run | Scr Mat Min Mat Machines Accessed 5 | . 1 . 4 Terminals 4 | . 1 . 3 Fabricators . | . . . . Repair Stations . | . . . . Recycling Units . | . . . . Scanalyzers 1 | . . . 1 Garrison Access . | . . . . Total Hacks 22 | . 4 . 18 Successful 11 | . 1 . 10 Failed 11 | . 3 . 8 Catastrophic . | . . . . Database Lockouts . | . . . . Manual 12 | . . . 12 Terminals 21 | . 4 . 17 Fabricators . | . . . . Repair Stations . | . . . . Recycling Units . | . . . . Scanalyzers 1 | . . . 1 Garrison Access . | . . . . Terminal Hacks 10 | . 1 . 9 Robot Analysis 2 | . . . 2 Prototype ID Bank 1 | . . . 1 Branch Access Points 2 | . 1 . 1 Terminal Index 1 | . . . 1 Locate Traps 1 | . . . 1 Transport Status 1 | . . . 1 Registered Components 2 | . . . 2 Fabricator Hacks . | . . . . Repair Station Hacks . | . . . . Recycling Unit Hacks . | . . . . Scanalyzer . | . . . . Garrison Access Hacks . | . . . . Unauthorized Hacks 2 | . . . 2 Terminals . | . . . . Fabricators . | . . . . Repair Stations . | . . . . Recycling Units . | . . . . Scanalyzers 1 | . . . 1 Extract 1 | . . . 1 Garrison Access . | . . . . Data Cores Recovered . | . . . . Used . | . . . . Hacking Detections 4 | . 1 . 3 Full Trace Events 4 | . 1 . 3 Feedback Events . | . . . . Feedback Blocked . | . . . . Robot Schematics Acquired . | . . . . Robots Built . | . . . . Matter . | . . . . Time . | . . . . Total Robot Build Rating . | . . . . Part Schematics Acquired 3 | . . . 3 Parts Built . | . . . . Matter . | . . . . Time . | . . . . Total Part Build Rating . | . . . . Parts Repaired . | . . . . Time . | . . . . Parts Recycled . | . . . . Recycled Matter . | . . . . Retrieved Matter . | . . . . Retrieved Components . | . . . . Parts Scanalyzed . | . . . . Part Schematics Acquired . | . . . . Parts Damaged . | . . . . Bothacking | -11 -10 -10 -9 ------------ Run | Scr Mat Min Mat Used RIF Installer . | . . . . Robots Hacked . | . . . . Non-combat . | . . . . Combat . | . . . . Robot Hacks Applied . | . . . . Relay Couplers Released . | . . . . Robots Rewired . | . . . . Allies Hacked . | . . . . Hacks Repelled . | . . . . Allies | -11 -10 -10 -9 -------- Run | Scr Mat Min Mat Total Allies . | . . . . Largest Group . | . . . . Highest-Rated Group . | . . . . Highest-Rated Ally . | . . . . Total Orders . | . . . . Ally Attacks . | . . . . Total Damage . | . . . . Kills . | . . . . Allies Corrupted . | . . . . Allies Melted . | . . . . Intel | -11 -10 -10 -9 ------- Run | Scr Mat Min Mat Robot Analysis Total 2 | . . . 2 Derelict Logs Recovered 1 | . . 1 . Drone Launches . | . . . . Drone Recoveries . | . . . . Exploration | -11 -10 -10 -9 ------------- Run | Scr Mat Min Mat Turns Passed 1020 | 42 371 81 526 Spaces Moved 1261 | 48 403 186 624 Core 252 | 15 . . 237 Treads . | . . . . Legs . | . . . . Wheels 55 | 33 22 . . Hover 76 | . 76 . . Flight 878 | . 305 186 387 Fastest Speed 37 | 50 37 37 37 Average Speed 55 | 70 52 37 62 Slowest Speed 150 | 80 120 37 150 Overloaded Moves . | . . . . Propulsion Burnouts . | . . . . Robots Hopped 13 | . 2 . 11 Cave-ins Triggered . | . . . . Exploration Rate (%) 42 | 3 63 55 47 Regions Visited 3 Branch Regions 1 Pre-discovered Areas . | . . . . Known Exits Taken 1 | . 1 . . Unknown Exits Taken 2 | 1 . 1 . Scrap Searched 1 | . . 1 . Spaces Dug . | . . . . Terrain Destroyed 243 | . 5 24 214 Melee . | . . . . Projectile . | . . . . AOE 243 | . 5 24 214 Actions | -11 -10 -10 -9 --------- Run | Scr Mat Min Mat Total 1458 | 55 506 193 704 Wait 23 | . 2 . 21 Move 1233 | 47 398 185 603 Hop 12 | . 2 . 10 Pick Up 39 | 4 17 3 15 Fast Attach . | . . . . Attach 27 | 4 9 1 13 Detach . | . . . . Swap 6 | . 6 . . Drop 27 | . 14 . 13 Fire 91 | . 58 4 29 Melee . | . . . . Ram . | . . . . Kick . | . . . . Crush . | . . . . Escape Stasis . | . . . . Rewire . | . . . . Trap . | . . . . Miscellaneous . | . . . . Route ------- -11/Scrapyard -10/Materials (discovered 3 exits: *Mat / *Min x2) -10/Mines -9/Materials (discovered 3 exits: Min x2 / *Sto) History --------- Turn | Location | Event 8 | -11/Scrapyard | Discovered new exit (range 15) 43 | -11/Scrapyard | Entered Materials 205 | -10/Materials | Discovered new exit (range 16) 234 | -10/Materials | Discovered new exit (range 18) 316 | -10/Materials | Identified exit to Mines 414 | -10/Materials | Entered Mines 442 | -10/Mines | Received a Rocket Launcher from a helpful Derelict 448 | -10/Mines | Core integrity fell below 50% 482 | -10/Mines | Learned Materials emergency access door positions 484 | -10/Mines | Discovered new exit (range 14) 495 | -10/Mines | Entered Materials 495 | -9/Materials | Evolved 2 slots: Utility x2 497 | -9/Materials | Discovered new exit (range 5) 635 | -9/Materials | Build established: Mutant 831 | -9/Materials | Identified exit to Mines 831 | -9/Materials | Identified exit to Storage 972 | -9/Materials | Core integrity fell below 50% 1016 | -9/Materials | Core integrity fell below 20% 1021 | -9/Materials | Self-destructed Last Messages --------------- 00946_ R-06 Scavenger collects Aluminum Leg. 00949_ G-34 Mercenary destroyed. 00960_ VTOL Module destroyed. 00965_ G-34 Mercenary destroyed. 00965_ Door malfunctions. 00968_ Acquired Ion Engine. 00969_ EM Shotgun destroyed. 00971_ K-01 Serf collects debris. 00976_ Acquired Beam Rifle. 00984_ Dropped Power Shielding. 00985_ Dropped Imp. Sensor Array. 00985_ Dropped Ion Engine. 01002_ K-01 Serf collects debris. 01011_ O-16 Technician: "IFF HANDSHAKE FAILED. SECURING TERMINAL." 01011_ O-16 Technician uses terminal to summon reinforcements. 01011_ ALERT: Hostiles spotted, dispatching reinforcements to Terminal M007. 01011_ O-16 Technician locks terminal. 01015_ Triggered EMP Trap. 01015_ A bubble of electromagnetic force engulfs the area. 01019_ K-01 Serf collects debris. Map ----- +----------------------------------------------------+ | ?????????????????????????????????????????????????? | | ?????????????????????????????????????????????????? | | ?????????????????????????????????????????????????? | | ?????????????????????????????????????????????????? | | ?????????????????????????????????????????????????? | | ?????????????????????????????????????????????????? | | ?????????????????????????????????????????????????? | | ?????????????????????????????????????????????????? | | ?????????????????????????????????????????????????? | | ????????????????????????? ?????????????????????? | | ????????????????????????# ?????????????????????? | | ????????????????????????# #???????#######??????? | | ????????????????????????# #???????# #??????? | | ????????????????????????# #???????# ######## | | ????????????????????????# gg#???????# # | | ????????????????????????# #???????# + | | ????????????????????????# #???????# # | | ????????????????????????# #???????# #####+## | | ????????????????????????# #???????# #??# | | ????????????????????????# ############+##### | | ????????????????????????# # """ #???# | | ????????????????????????# # """ #???#+######+## | | ????????????????????????# # """ #???# | | ????????????????????????# + #???# | | ????????????????????????# # #???# " """"" | | ??????????????????#######@ # #???# """"""""" | | ??????????????????+ ########???# """ """ | | ??????????????????#### #??????????########### | | ?????????????????????# #????????????????????? | | ?????????????????????# #????????????????????? | | ?????????????????????# ^ ############?????????? | | ??????????????????#### ????????? | | ??????????????????+ ????????? | | ???????????#??????####### ????????? | | ???????????# #############k###########/###???????? | | ??????????## + #?????# #???????? | | ??????????#" # """ #?????# #???????? | | ??????????#T """"" # % "T" #?????# #???????? | | ??????????#" """"" + #?????# #???????? | | ???????????# """"" # #?????# #???##### | | ??????????## * # """ ####??# #???# | | ??? + " ## #### ##### ### | | ???# ###########+#### # ## # # # #?? | | ????????????### # ## # # #?? | | ??????????? # # ######## # ## #?? | | ??????????? !!! # ################### ##? | | ??????????? !!! # + #? | | ??????????? !! # # *=########## +### | | ??????????? # # [%#[ =# [ #?# | | ???????????? # + [%+%= # #?# | +----------------------------------------------------+ Best States ------------- Heat Dissipation 28 Energy Generation 10 Energy Capacity 250 Matter Stores 300 Matter Capacity 300 Sight Range 18 Robot Scan Range 13 Terrain Scan Density 10 Resistance: KI 20 Resistance: TH 20 Resistance: EX 20 Resistance: EM 20 Resistance: I 20 Resistance: S 20 Resistance: P 20 Power Shielding 33 Evasion (%) 62 Targeting Accuracy 5 Armor Integrity Analysis 33 Offensive Hacking 10 Item Schematics ----------------- Hcp. Matter Pod | -9/Materials | Extracted Power Shielding | -9/Materials | Extracted Seismic Analyzer | -9/Materials | Extracted Robot Schematics ------------------ None Fabricated ------------ Nothing Alien Tech Used ----------------- None Achievements -------------- None Challenges ------------ None Game ------ Seed BoreArmoredShockpuncher Manual? 0 Play Time 00:13:48 Cumulative 188.6 hours Start 2020.08.02 @ 19:09:27 End 2020.08.02 @ 19:21:32 Sessions 1 Manual Loads 0 Difficulty Adventurer Special Mode None Game No. 83 Rogue 0 Adventurer 83 Explorer 0 Win Type - Total 1 Types 1/0/0/0/0/0/0 Lore% 32 Gallery% 57 Achievement% 42 Wizard Run 0 Options --------- ASCII 0 Keyboard 0 Movement Numpad Keybinds 0 Fullscreen 0 Font 12/Smallcaps Map View 83x54 Tactical HUD 1 Map Filters NONE Filters NONE Steam X RUN: ba27f556-e3b1-48ef-b496-7c5e39f30b19